fUSD/lending_fUSD_20240420
["ID","MTS","AMOUNT","RATE_DAILY","PERIOD"]
[322994388,1713579045822,-500.0,0.00015068,2]
[322994389,1713579045831,-500.0,0.00015068,2]
[322994390,1713579045840,-647.93,0.00015068,2]
[322994391,1713579045849,-500.0,0.00015068,2]
[322994392,1713579045858,-2516.71,0.00015068,2]
[322994393,1713579045868,-500.0,0.00015068,2]
[322994394,1713579045877,-1540.63,0.00015068,2]
[322994395,1713579045886,-500.0,0.00015068,2]
[322994396,1713579045895,-500.0,0.00015068,2]
[322994397,1713579045904,-527.61,0.00015068,2]
[322994398,1713579045912,-2896.01,0.00015068,2]
[322994399,1713579045922,-31377.79,0.00015068,2]
[322994400,1713579045931,-500.0,0.00015068,2]
[322994401,1713579045942,-500.0,0.00015068,2]
[322994402,1713579045952,-622.22,0.00015068,2]
[322994403,1713579045963,-2235.44,0.00015068,2]
[322994404,1713579045972,-500.0,0.00015068,2]
[322994405,1713579045981,-2660.59,0.00015068,2]
[322994406,1713579045990,-500.0,0.00015068,2]
[322994407,1713579046000,-6198.29,0.00015068,2]
[322994408,1713579046009,-1373.17,0.00015068,2]
[322994409,1713579046019,-1878.21,0.00015068,2]
[322994410,1713579046029,-500.0,0.00015068,2]
[322994411,1713579046038,-500.0,0.00015068,2]
[322994412,1713579046047,-600.01,0.00015068,2]
[322994413,1713579046056,-500.0,0.00015068,2]
[322994414,1713579046065,-629.71,0.00015068,2]
[322994415,1713579046074,-1876.59,0.00015068,2]
[322994416,1713579046084,-500.0,0.00015068,2]
[322994417,1713579046093,-736.36,0.00015068,2]
[322994418,1713579046102,-500.0,0.00015068,2]
[322994419,1713579046111,-500.0,0.00015068,2]
[322994420,1713579046121,-3563.56,0.00015068,2]
[322994421,1713579046131,-2526.81,0.00015068,2]
[322994422,1713579046141,-7287.71,0.00015068,2]
[322994423,1713579046150,-4390.82,0.00015068,2]
[322994424,1713579046159,-500.0,0.00015068,2]
[322994425,1713579046169,-500.0,0.00015068,2]
[322994426,1713579046179,-500.0,0.00015068,2]
[322994427,1713579046190,-885.81,0.00015068,2]
[322994428,1713579046198,-734.27,0.00015068,2]
[322994429,1713579046207,-2331.97,0.00015068,2]
[322994430,1713579046217,-927.6,0.00015068,2]
[322994431,1713579046226,-3228.71,0.00015068,2]
[322994432,1713579046235,-500.0,0.00015068,2]
[322994433,1713579046245,-2776.49,0.00015068,2]
[322994434,1713579046254,-502.1311957,0.00015068,2]
[322994435,1713579046264,-500.0,0.00015068,2]
[322994436,1713579046273,-503.41,0.00015068,2]
[322994437,1713579046283,-1625.99,0.00015068,2]
[322994438,1713579046292,-500.0,0.00015068,2]
[322994439,1713579046302,-4502.0,0.00015068,2]
[322994440,1713579046312,-500.0,0.00015068,2]
[322994441,1713579046321,-500.0,0.00015068,2]
[322994442,1713579046330,-1700.79,0.00015068,2]
[322994443,1713579046339,-500.0,0.00015068,2]
[322994444,1713579046349,-3071.27,0.00015068,2]
[322994445,1713579046358,-22085.14,0.00015068,2]
[322994446,1713579046367,-500.0,0.00015068,2]
[322994447,1713579046376,-500.0,0.00015068,2]
[322994448,1713579046385,-500.0,0.00015068,2]
[322994449,1713579046394,-847.2,0.00015068,2]
[322994450,1713579046403,-500.0,0.00015068,2]
[322994451,1713579046412,-500.0,0.00015068,2]
[322994452,1713579046421,-1833.02,0.00015068,2]
[322994453,1713579046430,-500.0,0.00015068,2]
[322994454,1713579046441,-7799.49,0.00015068,2]
[322994455,1713579046450,-663.78,0.00015068,2]
[322994456,1713579046459,-500.0,0.00015068,2]
[322994457,1713579046468,-1822.31,0.00015068,2]
[322994458,1713579046477,-500.0,0.00015068,2]
[322994459,1713579046486,-500.0,0.00015068,2]
[322994460,1713579046494,-2709.76,0.00015068,2]
[322994461,1713579046504,-500.0,0.00015068,2]
[322994462,1713579046513,-822.33,0.00015068,2]
[322994463,1713579046522,-769.49,0.00015068,2]
[322994464,1713579046532,-500.0,0.00015068,2]
[322994465,1713579046541,-1183.33,0.00015068,2]
[322994466,1713579046550,-500.0,0.00015068,2]
[322994467,1713579046559,-500.0,0.00015068,2]
[322994468,1713579046568,-737.63,0.00015068,2]
[322994469,1713579046578,-968.97,0.00015068,2]
[322994470,1713579046588,-2714.09,0.00015068,2]
[322994471,1713579046597,-2600.65,0.00015068,2]
[322994472,1713579046606,-1108.56,0.00015068,2]
[322994473,1713579046615,-2489.83,0.00015068,2]
[322994474,1713579046624,-1347.89,0.00015068,2]
[322994475,1713579046634,-13030.37,0.00015068,2]
[322994476,1713579046644,-500.0,0.00015068,2]
[322994477,1713579046653,-500.0,0.00015068,2]
[322994478,1713579046662,-608.85,0.00015068,2]
[322994479,1713579046672,-500.0,0.00015068,2]
[322994480,1713579046681,-1369.35,0.00015068,2]
[322994481,1713579046692,-504.13,0.00015068,2]
[322994482,1713579046701,-791.33,0.00015068,2]
[322994483,1713579046710,-500.0,0.00015068,2]
[322994484,1713579046719,-2883.08,0.00015068,2]
[322994485,1713579046728,-1205.24,0.00015068,2]
[322994486,1713579046737,-2983.47,0.00015068,2]
[322994487,1713579046746,-638.86,0.00015068,2]
[322994488,1713579046756,-500.0,0.00015068,2]
[322994489,1713579046765,-1983.35,0.00015068,2]
[322994490,1713579046773,-500.0,0.00015068,2]
[322994491,1713579046782,-2720.73,0.00015068,2]
[322994492,1713579046791,-500.0,0.00015068,2]
[322994493,1713579046800,-671.06,0.00015068,2]
[322994494,1713579046809,-1832.66,0.00015068,2]
[322994495,1713579046818,-500.0,0.00015068,2]
[322994496,1713579046827,-500.0,0.00015068,2]
[322994497,1713579046837,-4841.65,0.00015068,2]
[322994498,1713579046845,-500.0,0.00015068,2]
[322994499,1713579046856,-500.0,0.00015068,2]
[322994500,1713579046865,-1318.78,0.00015068,2]
[322994501,1713579046874,-500.0,0.00015068,2]
[322994502,1713579046883,-915.95,0.00015068,2]
[322994503,1713579046892,-500.0,0.00015068,2]
[322994504,1713579046902,-2713.62,0.00015068,2]
[322994505,1713579046911,-3819.53,0.00015068,2]
[322994506,1713579046921,-529.05,0.00015068,2]
[322994507,1713579046929,-1352.11,0.00015068,2]
[322994508,1713579046941,-500.0,0.00015068,2]
[322994509,1713579046951,-629.87,0.00015068,2]
[322994510,1713579046963,-2203.75,0.00015068,2]
[322994511,1713579046972,-2996.05,0.00015068,2]
[322994512,1713579046981,-500.0,0.00015068,2]
[322994513,1713579046990,-500.0,0.00015068,2]
[322994514,1713579047000,-5396.65,0.00015068,2]
[322994515,1713579047010,-998.47,0.00015068,2]
[322994516,1713579047019,-1952.96,0.00015068,2]
[322994517,1713579047028,-500.0,0.00015068,2]
[322994518,1713579047037,-529.53,0.00015068,2]
[322994519,1713579047047,-500.0,0.00015068,2]
[322994520,1713579047056,-500.0,0.00015068,2]
[322994521,1713579047065,-500.0,0.00015068,2]
[322994522,1713579047075,-500.0,0.00015068,2]
[322994523,1713579047084,-3603.79,0.00015068,2]
[322994524,1713579047093,-2002.19,0.00015068,2]
[322994525,1713579047103,-554.46,0.00015068,2]
[322994526,1713579047113,-1097.62,0.00015068,2]
[322994527,1713579047124,-500.0,0.00015068,2]
[322994528,1713579047133,-1160.91,0.00015068,2]
[322994529,1713579047142,-3151.62,0.00015068,2]
[322994530,1713579047151,-500.0,0.00015068,2]
[322994531,1713579047160,-1062.22,0.00015068,2]
[322994532,1713579047169,-3305.74,0.00015068,2]
[322994533,1713579047178,-1684.93,0.00015068,2]
[322994534,1713579047188,-1942.38,0.00015068,2]
[322994535,1713579047197,-500.0,0.00015068,2]
[322994536,1713579047207,-500.0,0.00015068,2]
[322994537,1713579047216,-500.0,0.00015068,2]
[322994538,1713579047226,-999.27,0.00015068,2]
[322994539,1713579047235,-3350.55,0.00015068,2]
[322994540,1713579047244,-2837.14,0.00015068,2]
[322994541,1713579047254,-500.0,0.00015068,2]
[322994542,1713579047263,-2547.97,0.00015068,2]
[322994543,1713579047273,-1411.94,0.00015068,2]
[322994544,1713579047283,-500.0,0.00015068,2]
[322994545,1713579047293,-500.0,0.00015068,2]
[322994546,1713579047303,-502.98826193,0.00015068,2]
[322994547,1713579047313,-6333.31,0.00015068,2]
[322994548,1713579047323,-500.0,0.00015068,2]
[322994549,1713579047332,-563.98,0.00015068,2]
[322994550,1713579047342,-977.44,0.00015068,2]
[322994551,1713579047351,-692.1,0.00015068,2]
[322994552,1713579047361,-1299.74,0.00015068,2]
[322994553,1713579047370,-844.22,0.00015068,2]
[322994554,1713579047379,-500.0,0.00015068,2]
[322994555,1713579047389,-1240.47,0.00015068,2]
[322994556,1713579047399,-500.0,0.00015068,2]
[322994557,1713579047409,-156.17846442,0.00015068,2]
[322994558,1713579047419,-797.96,0.00015068,2]
[322994559,1713579047430,-3779.93,0.00015068,2]
[322994560,1713579047441,-4999.46,0.00015068,2]
[322994561,1713579047450,-500.0,0.00015068,2]
[322994562,1713579047459,-500.0,0.00015068,2]
[322994563,1713579047468,-500.0,0.00015068,2]
[322994564,1713579047478,-1882.08,0.00015068,2]
[322994565,1713579047488,-726.02,0.00015068,2]
[322994566,1713579047497,-1122.03,0.00015068,2]
[322994567,1713579047507,-500.0,0.00015068,2]
[322994568,1713579047516,-2107.05,0.00015068,2]
[322994569,1713579047527,-500.0,0.00015068,2]
[322994570,1713579047536,-3235.99,0.00015068,2]
[322994571,1713579047546,-510.63924993,0.00015068,2]
[322994572,1713579047555,-1924.47,0.00015068,2]
[322994573,1713579047564,-3231.91,0.00015068,2]
[322994574,1713579047574,-500.0,0.00015068,2]
[322994575,1713579047583,-1536.26,0.00015068,2]
[322994576,1713579047592,-500.0,0.00015068,2]
[322994577,1713579047602,-2285.27,0.00015068,2]
[322994578,1713579047611,-2207.51,0.00015068,2]
[322994579,1713579047622,-500.0,0.00015068,2]
[322994580,1713579047632,-963.08,0.00015068,2]
[322994581,1713579047642,-500.0,0.00015068,2]
[322994582,1713579047652,-645.23,0.00015068,2]
[322994583,1713579047661,-2351.58,0.00015068,2]
[322994584,1713579047671,-500.0,0.00015068,2]
[322994585,1713579047680,-196.74624487,0.00015068,2]
[322994586,1713579047691,-1124.83,0.00015068,2]
[322994587,1713579047700,-1732.92,0.00015068,2]
[322994588,1713579047709,-709.64,0.00015068,2]
[322994589,1713579047719,-500.0,0.00015068,2]
[322994590,1713579047728,-558.21,0.00015068,2]
[322994591,1713579047738,-1728.3,0.00015068,2]
[322994592,1713579047747,-2171.97,0.00015068,2]
[322994593,1713579047756,-500.0,0.00015068,2]
[322994594,1713579047766,-500.0,0.00015068,2]
[322994595,1713579047775,-500.0,0.00015068,2]
[322994596,1713579047784,-1625.77,0.00015068,2]
[322994597,1713579047794,-500.0,0.00015068,2]
[322994598,1713579047805,-6549.72,0.00015068,2]
[322994599,1713579047814,-606.96,0.00015068,2]
[322994600,1713579047823,-500.0,0.00015068,2]
[322994601,1713579047833,-500.0,0.00015068,2]
[322994602,1713579047843,-500.0,0.00015068,2]
[322994603,1713579047852,-526.09,0.00015068,2]
[322994604,1713579047861,-585.20477983,0.00015068,2]
[322994605,1713579047871,-1133.58,0.00015068,2]
[322994606,1713579047880,-500.0,0.00015068,2]
[322994607,1713579047889,-822.81,0.00015068,2]
[322994608,1713579047898,-500.0,0.00015068,2]
[322994609,1713579047909,-500.0,0.00015068,2]
[322994610,1713579047919,-500.0,0.00015068,2]
[322994611,1713579047929,-655.39,0.00015068,2]
[322994612,1713579047940,-3180.5,0.00015068,2]
[322994613,1713579047953,-500.0,0.00015068,2]
[322994614,1713579047964,-1085.81,0.00015068,2]
[322994615,1713579047975,-500.0,0.00015068,2]
[322994616,1713579047986,-500.0,0.00015068,2]
[322994617,1713579047996,-5382.87,0.00015068,2]
[322994618,1713579048005,-520.64433811,0.00015068,2]
[322994619,1713579048015,-1101.07,0.00015068,2]
[322994620,1713579048024,-572.46,0.00015068,2]
[322994621,1713579048035,-553.92,0.00015068,2]
[322994622,1713579048044,-500.0,0.00015068,2]
[322994623,1713579048053,-2954.53,0.00015068,2]
[322994624,1713579048063,-500.0,0.00015068,2]
[322994625,1713579048072,-500.0,0.00015068,2]
[322994626,1713579048081,-500.0,0.00015068,2]
[322994627,1713579048090,-1211.75,0.00015068,2]
[322994628,1713579048100,-1036.14,0.00015068,2]
[322994629,1713579048109,-742.24,0.00015068,2]
[322994630,1713579048118,-500.0,0.00015068,2]
[322994631,1713579048128,-5556.01,0.00015068,2]
[322994632,1713579048137,-887.5,0.00015068,2]
[322994633,1713579048146,-500.0,0.00015068,2]
[322994634,1713579048155,-2052.12,0.00015068,2]
[322994635,1713579048165,-500.0,0.00015068,2]
[322994636,1713579048174,-500.0,0.00015068,2]
[322994637,1713579048183,-500.0,0.00015068,2]
[322994638,1713579048193,-2340.55,0.00015068,2]
[322994639,1713579048203,-618.16,0.00015068,2]
[322994640,1713579048212,-835.61,0.00015068,2]
[322994641,1713579048222,-1386.49,0.00015068,2]
[322994642,1713579048232,-556.48,0.00015068,2]
[322994643,1713579048241,-5432.06,0.00015068,2]
[322994644,1713579048250,-1915.71,0.00015068,2]
[322994645,1713579048260,-500.0,0.00015068,2]
[322994646,1713579048269,-8238.3,0.00015068,2]
[322994647,1713579048278,-729.27,0.00015068,2]
[322994648,1713579048288,-500.0,0.00015068,2]
[322994649,1713579048297,-500.0,0.00015068,2]
[322994650,1713579048306,-500.0,0.00015068,2]
[322994651,1713579048316,-964.28,0.00015068,2]
[322994652,1713579048325,-500.0,0.00015068,2]
[322994653,1713579048334,-500.0,0.00015068,2]
[322994654,1713579048344,-3313.63,0.00015068,2]
[322994655,1713579048354,-2537.89179498,0.00015125,2]
[322994656,1713579048363,-9331.5653122,0.00015224,2]
[322994657,1713579048373,-2537.89179498,0.00015281,2]
[322994658,1713579048382,-500.24077008,0.00015342,2]
[322994659,1713579048392,-589.01,0.00015342,2]
[322994660,1713579048401,-500.0,0.00015342,2]
[322994661,1713579048414,-508.06,0.00015342,2]
[322994662,1713579048423,-500.0,0.00015342,2]
[322994663,1713579048433,-727.14,0.00015342,2]
[322994664,1713579048444,-500.0,0.00015342,2]
[322994665,1713579048454,-789.85,0.00015342,2]
[322994666,1713579048463,-500.0,0.00015342,2]
[322994667,1713579048472,-622.2,0.00015342,2]
[322994668,1713579048481,-500.0,0.00015342,2]
[322994669,1713579048490,-500.0,0.00015342,2]
[322994670,1713579048500,-500.0,0.00015342,2]
[322994671,1713579048510,-714.75,0.00015342,2]
[322994672,1713579048519,-500.0,0.00015342,2]
[322994673,1713579048529,-500.0,0.00015342,2]
[322994674,1713579048539,-154.27,0.00015342,2]
[322994675,1713579048548,-506.78,0.00015342,2]
[322994676,1713579048559,-500.0,0.00015342,2]
[322994677,1713579048569,-507.23,0.00015342,2]
[322994678,1713579048579,-500.0,0.00015342,2]
[322994679,1713579048589,-576.42,0.00015342,2]
[322994680,1713579048598,-543.55,0.00015342,2]
[322994681,1713579048608,-605.27,0.00015342,2]
[322994682,1713579048619,-1015.74,0.00015342,2]
[322994683,1713579048628,-550.98,0.00015342,2]
[322994684,1713579048641,-500.0,0.00015342,2]
[322994685,1713579048650,-500.0,0.00015342,2]
[322994686,1713579048660,-562.08,0.00015342,2]
[322994687,1713579048669,-500.0,0.00015342,2]
[322994688,1713579048677,-500.0,0.00015342,2]
[322994689,1713579048687,-393.93,0.00015342,2]
[322994690,1713579048696,-577.4,0.00015342,2]
[322994691,1713579048705,-500.0,0.00015342,2]
[322994692,1713579048714,-500.0,0.00015342,2]
[322994693,1713579048723,-1036.35,0.00015342,2]
[322994694,1713579048733,-310.47971799,0.00015342,2]
[322994695,1713579048743,-641.54478275,0.00015342,2]
[322994696,1713579048753,-500.0,0.00015342,2]
[322994697,1713579048764,-1318.82,0.00015342,2]
[322994698,1713579048775,-500.0,0.00015342,2]
[322994699,1713579048786,-500.0,0.00015342,2]
[322994700,1713579048795,-500.0,0.00015342,2]
[322994701,1713579048807,-500.0,0.00015342,2]
[322994702,1713579048818,-500.0,0.00015342,2]
[322994703,1713579048827,-500.0,0.00015342,2]
[322994704,1713579048836,-694.42,0.00015342,2]
[322994705,1713579048845,-500.0,0.00015342,2]
[322994706,1713579048855,-500.0,0.00015342,2]
[322994707,1713579048864,-500.0,0.00015342,2]
[322994708,1713579048873,-508.51,0.00015342,2]
[322994709,1713579048884,-199.9656597,0.00015342,2]
[322994710,1713579048894,-500.0,0.00015342,2]
[322994711,1713579048906,-1169.63,0.00015342,2]
[322994712,1713579048916,-500.0,0.00015342,2]
[322994713,1713579048927,-632.8,0.00015342,2]
[322994714,1713579048938,-625.72,0.00015342,2]
[322994715,1713579048947,-1111.76,0.00015342,2]
[322994716,1713579048959,-500.0,0.00015342,2]
[322994717,1713579048968,-500.0,0.00015342,2]
[322994718,1713579048978,-500.0,0.00015342,2]
[322994719,1713579048987,-1159.39,0.00015342,2]
[322994720,1713579048997,-500.0,0.00015342,2]
[322994721,1713579049006,-1456.61,0.00015342,2]
[322994722,1713579049016,-500.0,0.00015342,2]
[322994723,1713579049025,-500.0,0.00015342,2]
[322994724,1713579049035,-500.0,0.00015342,2]
[322994725,1713579049044,-500.0,0.00015342,2]
[322994726,1713579049054,-526.56,0.00015342,2]
[322994727,1713579049063,-612.33,0.00015342,2]
[322994728,1713579049073,-500.0,0.00015342,2]
[322994729,1713579049082,-1295.65,0.00015342,2]
[322994730,1713579049091,-648.78,0.00015342,2]
[322994731,1713579049100,-651.67,0.00015342,2]
[322994732,1713579049110,-500.0,0.00015342,2]
[322994733,1713579049120,-500.0,0.00015342,2]
[322994734,1713579049129,-500.0,0.00015342,2]
[322994735,1713579049139,-622.97,0.00015342,2]
[322994736,1713579049148,-641.72,0.00015342,2]
[322994737,1713579049157,-1043.14,0.00015342,2]
[322994738,1713579049166,-500.0,0.00015342,2]
[322994739,1713579049175,-500.0,0.00015342,2]
[322994740,1713579049185,-500.0,0.00015342,2]
[322994741,1713579049197,-500.0,0.00015342,2]
[322994742,1713579049206,-500.0,0.00015342,2]
[322994743,1713579049216,-500.0,0.00015342,2]
[322994744,1713579049351,-500.0,0.00015342,2]
[322994745,1713579049361,-500.0,0.00015342,2]
[322994746,1713579049370,-820.6,0.00015342,2]
[322994747,1713579049380,-805.85,0.00015342,2]
[322994748,1713579049389,-652.78,0.00015342,2]
[322994749,1713579049398,-500.0,0.00015342,2]
[322994750,1713579049407,-500.0,0.00015342,2]
[322994751,1713579049416,-500.0,0.00015342,2]
[322994752,1713579049426,-939.39,0.00015342,2]
[322994753,1713579049438,-500.0,0.00015342,2]
[322994754,1713579049447,-500.0,0.00015342,2]
[322994755,1713579049457,-1100.67,0.00015342,2]
[322994756,1713579049466,-500.0,0.00015342,2]
[322994757,1713579049475,-1057.59,0.00015342,2]
[322994758,1713579049485,-1079.06,0.00015342,2]
[322994759,1713579049494,-500.0,0.00015342,2]
[322994760,1713579049503,-677.55,0.00015342,2]
[322994761,1713579049512,-503.20436968,0.00015342,2]
[322994762,1713579049521,-878.53,0.00015342,2]
[322994763,1713579049530,-1100.85,0.00015342,2]
[322994764,1713579049539,-648.54,0.00015342,2]
[322994765,1713579049548,-500.0,0.00015342,2]
[322994766,1713579049558,-1130.69,0.00015342,2]
[322994767,1713579049567,-1036.4,0.00015342,2]
[322994768,1713579049577,-1659.44,0.00015342,2]
[322994769,1713579049586,-500.0,0.00015342,2]
[322994770,1713579049595,-153.72435946,0.00015342,2]
[322994771,1713579049605,-1026.95,0.00015342,2]
[322994772,1713579049614,-500.0,0.00015342,2]
[322994773,1713579049623,-500.0,0.00015342,2]
[322994774,1713579049632,-500.0,0.00015342,2]
[322994775,1713579049641,-500.0,0.00015342,2]
[322994776,1713579049651,-500.0,0.00015342,2]
[322994777,1713579049660,-608.88,0.00015342,2]
[322994778,1713579049670,-500.0,0.00015342,2]
[322994779,1713579049679,-500.0,0.00015342,2]
[322994780,1713579049690,-500.0,0.00015342,2]
[322994781,1713579049699,-951.43,0.00015342,2]
[322994782,1713579049708,-840.24,0.00015342,2]
[322994783,1713579049717,-1060.16,0.00015342,2]
[322994784,1713579049726,-500.0,0.00015342,2]
[322994785,1713579049736,-792.69,0.00015342,2]
[322994786,1713579049745,-793.5,0.00015342,2]
[322994787,1713579049755,-1039.46,0.00015342,2]
[322994788,1713579049764,-861.39,0.00015342,2]
[322994789,1713579049773,-500.0,0.00015342,2]
[322994790,1713579049783,-500.0,0.00015342,2]
[322994791,1713579049792,-817.87,0.00015342,2]
[322994792,1713579049801,-1317.9,0.00015342,2]
[322994793,1713579049811,-173.44205982,0.00015342,2]
[322994794,1713579049820,-551.68,0.00015342,2]
[322994795,1713579049830,-500.0,0.00015342,2]
[322994796,1713579049839,-503.41350245,0.00015342,2]
[322994797,1713579049848,-500.0,0.00015342,2]
[322994798,1713579049857,-500.0,0.00015342,2]
[322994799,1713579049866,-722.24,0.00015342,2]
[322994800,1713579049875,-500.0,0.00015342,2]
[322994801,1713579049885,-500.0,0.00015342,2]
[322994802,1713579049894,-629.68,0.00015342,2]
[322994803,1713579049903,-1097.03,0.00015342,2]
[322994804,1713579049912,-500.0,0.00015342,2]
[322994805,1713579049922,-518.96,0.00015342,2]
[322994806,1713579049931,-500.0,0.00015342,2]
[322994807,1713579049941,-500.0,0.00015342,2]
[322994808,1713579049951,-500.0,0.00015342,2]
[322994809,1713579049963,-908.85,0.00015342,2]
[322994810,1713579049972,-754.12,0.00015342,2]
[322994811,1713579049981,-500.0,0.00015342,2]
[322994812,1713579049990,-500.0,0.00015342,2]
[322994813,1713579050000,-334.95461272,0.00015342,2]
[322994814,1713579050010,-899.07,0.00015342,2]
[322994815,1713579050019,-504.29213146,0.00015342,2]
[322994816,1713579050029,-500.0,0.00015342,2]
[322994817,1713579050039,-593.29,0.00015342,2]
[322994818,1713579050049,-500.0,0.00015342,2]
[322994819,1713579050059,-625.45,0.00015342,2]
[322994820,1713579050068,-859.71,0.00015342,2]
[322994821,1713579050078,-500.0,0.00015342,2]
[322994822,1713579050087,-500.0,0.00015342,2]
[322994823,1713579050097,-500.0,0.00015342,2]
[322994824,1713579050106,-500.0,0.00015342,2]
[322994825,1713579050116,-1309.94,0.00015342,2]
[322994826,1713579050125,-999.55,0.00015342,2]
[322994827,1713579050135,-500.0,0.00015342,2]
[322994828,1713579050145,-500.0,0.00015342,2]
[322994829,1713579050154,-974.27,0.00015342,2]
[322994830,1713579050164,-500.0,0.00015342,2]
[322994831,1713579050174,-500.0,0.00015342,2]
[322994832,1713579050183,-503.23950263,0.00015342,2]
[322994833,1713579050194,-500.0,0.00015342,2]
[322994834,1713579050203,-500.0,0.00015342,2]
[322994835,1713579050213,-510.50575539,0.00015342,2]
[322994836,1713579050222,-695.13,0.00015342,2]
[322994837,1713579050232,-1075.2,0.00015342,2]
[322994838,1713579050243,-500.0,0.00015342,2]
[322994839,1713579050253,-500.0,0.00015342,2]
[322994840,1713579050262,-868.03,0.00015342,2]
[322994841,1713579050272,-500.0,0.00015342,2]
[322994842,1713579050281,-500.0,0.00015342,2]
[322994843,1713579050291,-555.54,0.00015342,2]
[322994844,1713579050301,-500.0,0.00015342,2]
[322994845,1713579050311,-502.80113783,0.00015342,2]
[322994846,1713579050320,-500.0,0.00015342,2]
[322994847,1713579050330,-500.0,0.00015342,2]
[322994848,1713579050339,-520.84,0.00015342,2]
[322994849,1713579050349,-650.04,0.00015342,2]
[322994850,1713579050359,-500.0,0.00015342,2]
[322994851,1713579050368,-553.61,0.00015342,2]
[322994852,1713579050378,-544.94,0.00015342,2]
[322994853,1713579050388,-502.2342244,0.00015342,2]
[322994854,1713579050397,-868.63,0.00015342,2]
[322994855,1713579050407,-597.26,0.00015342,2]
[322994856,1713579050417,-500.0,0.00015342,2]
[322994857,1713579050426,-560.78,0.00015342,2]
[322994858,1713579050436,-697.31,0.00015342,2]
[322994859,1713579050445,-506.7,0.00015342,2]
[322994860,1713579050454,-657.01,0.00015342,2]
[322994861,1713579050464,-500.0,0.00015342,2]
[322994862,1713579050474,-500.0,0.00015342,2]
[322994863,1713579050487,-512.61,0.00015342,2]
[322994864,1713579050497,-500.0,0.00015342,2]
[322994865,1713579050506,-500.0,0.00015342,2]
[322994866,1713579050515,-2349.15,0.00015342,2]
[322994867,1713579050525,-500.0,0.00015342,2]
[322994868,1713579050534,-538.51,0.00015342,2]
[322994869,1713579050543,-1204.92,0.00015342,2]
[322994870,1713579050553,-500.0,0.00015342,2]
[322994871,1713579050562,-919.71,0.00015342,2]
[322994872,1713579050572,-500.0,0.00015342,2]
[322994873,1713579050582,-505.63426721,0.00015342,2]
[322994874,1713579050592,-987.95,0.00015342,2]
[322994875,1713579050601,-500.0,0.00015342,2]
[322994876,1713579050611,-797.31,0.00015342,2]
[322994877,1713579050620,-503.45128647,0.00015342,2]
[322994878,1713579050629,-500.0,0.00015342,2]
[322994879,1713579050638,-500.0,0.00015342,2]
[322994880,1713579050648,-2081.12,0.00015342,2]
[322994881,1713579050658,-500.0,0.00015342,2]
[322994882,1713579050667,-580.96,0.00015342,2]
[322994883,1713579050677,-500.0,0.00015342,2]
[322994884,1713579050686,-1246.43,0.00015342,2]
[322994885,1713579050696,-871.18,0.00015342,2]
[322994886,1713579050705,-500.0,0.00015342,2]
[322994887,1713579050715,-1350.27,0.00015342,2]